[Event "Hungarian Rapid-ch 2022"]
[Site "Ajka"]
[Date "2022.07.17"]
[Round "12.8"]
[White "Varga, Zoltan"]
[Black "Papp, Levente"]
[Result "1-0"]
[ECO "E08"]
[WhiteElo "2401"]
[BlackElo "2394"]
[Annotator "ChessBase"]
[PlyCount "135"]
[EventDate "2022.07.15"]
[EventType "swiss"]
[EventCountry "HUN"]
[SourceTitle "playchess.com"]
[Source "ChessBase"]
[SourceQuality "1"]
[TimeControl "900+10"]

1. c4 {[%emt 0:00:12]} e6 {[%emt 0:00:26]} 2. Nf3 {[%emt 0:00:09]} Nf6 {[%emt 0:00:11]} 3. g3 {[%emt 0:00:01]} d5 {[%emt 0:00:08]} 4. Bg2 {[%emt 0:00:02]} Be7 {[%emt 0:00:02]} 5. d4 {[%emt 0:00:01]} O-O {[%emt 0:00:30]} 6. O-O {[%emt 0:00:01]} Nbd7 {[%emt 0:01:20]} 7. Qc2 {[%emt 0:00:17]} dxc4 {[%emt 0:00:53]} 8. Qxc4 {[%emt 0:00:03]} a6 {[%emt 0:00:38]} 9. Qc2 {[%emt 0:00:19]} c5 {[%emt 0:00:17]} 10. dxc5 {[%emt 0:00:03]} Nxc5 {[%emt 0:00:07]} 11. Nc3 {[%emt 0:00:02]} Qb6 {[%emt 0:01:08]} 12. Be3 {[%emt 0:00:25]} Qb4 {[%emt 0:02:54]} 13. Rac1 {[%emt 0:00:19]} Bd7 {[%emt 0:00:35]} 14. Ne5 {[%emt 0:00:18]} Rac8 {[%emt 0:00:50]} 15. Rfd1 {[%emt 0:00:44]} Rfd8 {[%emt 0:00:37]} 16. Rd4 {[%emt 0:00:02]} Qb6 {[%emt 0:00:20]} 17. b4 {[%emt 0:00:01]} Qc7 {[%emt 0:00:00]} 18. Bf4 {[%emt 0:00:28]} Na4 {[%emt 0:00:26]} 19. Rc4 {[%emt 0:00:37]} Qxc4 {[%emt 0:00:15]} 20. Nxc4 {[%emt 0:00:05]} Rxc4 {[%emt 0:00:01]} 21. Qb3 {[%emt 0:03:04]} Rdc8 {[%emt 0:00:23]} 22. Nxa4 {[%emt 0:00:36]} Rxc1+ {[%emt 0:00:02]} 23. Bxc1 {[%emt 0:00:01]} Rxc1+ {[%emt 0:00:01]} 24. Bf1 Nd5 {[%emt 0:00:59]} 25. Nc5 {[%emt 0:03:50]} Bb5 {[%emt 0:00:20]} 26. Qb2 {[%emt 0:00:04]} Rc4 {[%emt 0:00:38]} 27. a3 {[%emt 0:00:56]} Bf6 {[%emt 0:00:10]} 28. Qd2 {[%emt 0:00:06]} Rd4 {[%emt 0:01:36]} 29. Qc2 {[%emt 0:00:01]} Rc4 {[%emt 0:00:07]} 30. Qd2 {[%emt 0:00:35]} Rd4 {[%emt 0:00:01]} 31. Nd3 {[%emt 0:00:00]} Bxd3 {[%emt 0:00:38]} 32. exd3 {[%emt 0:00:02]} Ne7 {[%emt 0:00:34]} 33. Qc2 {[%emt 0:00:11]} Rd7 {[%emt 0:00:22]} 34. Bg2 {[%emt 0:00:12]} g6 {[%emt 0:00:04]} 35. h4 {[%emt 0:00:16]} h5 {[%emt 0:00:03]} 36. Be4 {[%emt 0:00:02]} Kg7 {[%emt 0:00:09]} 37. Kg2 {[%emt 0:00:02]} Be5 {[%emt 0:00:26]} 38. Qc5 {[%emt 0:00:06]} Bd4 {[%emt 0:00:02]} 39. Qc4 {[%emt 0:00:09]} Bf6 {[%emt 0:00:27]} 40. Kh3 {[%emt 0:00:27]} Bd4 {[%emt 0:00:05]} 41. Kg2 {[%emt 0:00:10]} Bf6 42. a4 Nd5 {[%emt 0:00:37]} 43. Bxd5 {[%emt 0:01:07]} Rxd5 {[%emt 0:00:03]} 44. Qc8 {[%emt 0:00:01]} b5 {[%emt 0:00:55]} 45. Qxa6 {[%emt 0:00:03]} bxa4 {[%emt 0:00:02]} 46. f4 {[%emt 0:00:28]} Be7 {[%emt 0:00:26]} 47. Qxa4 {[%emt 0:01:05]} Rxd3 {[%emt 0:00:10]} 48. b5 {[%emt 0:00:01]} Rd2+ {[%emt 0:00:16]} 49. Kf1 {[%emt 0:00:23]} Bc5 {[%emt 0:01:06]} 50. Qc4 {[%emt 0:00:08]} Rd5 {[%emt 0:00:01]} 51. Qc3+ {[%emt 0:00:15]} Bd4 {[%emt 0:00:10]} 52. Qb3 {[%emt 0:00:07]} Bb6 {[%emt 0:00:04]} 53. Qc3+ {[%emt 0:00:05]} Bd4 {[%emt 0:00:05]} 54. Qc6 {[%emt 0:00:02]} Rc5 {[%emt 0:00:38]} 55. Qd6 {[%emt 0:00:33]} Rd5 {[%emt 0:00:11]} 56. Qb8 {[%emt 0:00:05]} e5 {[%emt 0:00:17]} 57. b6 {[%emt 0:01:33]} exf4 {[%emt 0:00:19]} 58. gxf4 {[%emt 0:00:14]} Rb5 {[%emt 0:00:19]} 59. b7 {[%emt 0:00:02]} Rb1+ {[%emt 0:00:16]} 60. Ke2 {[%emt 0:00:03]} Bf6 {[%emt 0:00:19]} 61. Qa8 {[%emt 0:00:18]} Rb2+ {[%emt 0:00:04]} 62. Kd3 {[%emt 0:00:28]} Rb3+ {[%emt 0:00:03]} 63. Kc4 {[%emt 0:00:12]} Rc3+ {[%emt 0:00:09]} 64. Kb4 {[%emt 0:00:12]} Rc1 {[%emt 0:00:15]} 65. b8=Q {[%emt 0:00:03]} Be7+ {[%emt 0:00:07]} 66. Kb3 {[%emt 0:00:08]} Rb1+ {[%emt 0:00:07]} 67. Kc4 {[%emt 0:00:01]} Rc1+ {[%emt 0:00:06]} 68. Kd3 {[%emt 0:00:05]} 1-0

[Event "Hungarian Rapid-ch 2022"]
[Site "Ajka"]
[Date "2022.07.17"]
[Round "12.9"]
[White "Csiszar, Csaba"]
[Black "Bagi, Mate"]
[Result "1/2-1/2"]
[ECO "D92"]
[WhiteElo "2389"]
[BlackElo "2460"]
[Annotator "ChessBase"]
[PlyCount "37"]
[EventDate "2022.07.15"]
[EventType "swiss"]
[EventCountry "HUN"]
[SourceTitle "playchess.com"]
[Source "ChessBase"]
[SourceQuality "1"]
[TimeControl "900+10"]

1. d4 {[%emt 0:00:13]} Nf6 {[%emt 0:00:12]} 2. Nf3 {[%emt 0:00:02]} g6 {[%emt 0:00:21]} 3. c4 {[%emt 0:00:01]} Bg7 {[%emt 0:00:12]} 4. Nc3 {[%emt 0:00:02]} d5 {[%emt 0:00:06]} 5. Bf4 {[%emt 0:00:01]} O-O {[%emt 0:00:20]} 6. Rc1 {[%emt 0:00:01]} dxc4 {[%emt 0:00:16]} 7. e4 {[%emt 0:00:04]} c5 {[%emt 0:00:17]} 8. dxc5 {[%emt 0:00:06]} Qa5 {[%emt 0:00:18]} 9. e5 {[%emt 0:00:21]} Nh5 {[%emt 0:00:49]} 10. Bd2 {[%emt 0:00:28]} Qxc5 {[%emt 0:00:15]} 11. Ne4 {[%emt 0:00:12]} Qd5 {[%emt 0:00:58]} 12. Nc3 {[%emt 0:02:28]} Qc5 {[%emt 0:02:02]} 13. Ne4 {[%emt 0:00:09]} Qd5 {[%emt 0:01:00]} 14. Nc3 {[%emt 0:00:02]} Qc5 {[%emt 0:01:48]} 15. Ne4 {[%emt 0:03:19]} Qd5 {[%emt 0:00:06]} 16. Nc3 Qc5 17. Na4 Qd5 18. Bxc4 Qe4+ 19. Be3 1/2-1/2

[Event "Hungarian Rapid-ch 2022"]
[Site "Ajka"]
[Date "2022.07.17"]
[Round "12.10"]
[White "Hoang, Thanh Trang"]
[Black "Czebe, Attila"]
[Result "1-0"]
[ECO "B07"]
[WhiteElo "2376"]
[BlackElo "2385"]
[Annotator "ChessBase"]
[PlyCount "53"]
[EventDate "2022.07.15"]
[EventType "swiss"]
[EventCountry "HUN"]
[SourceTitle "playchess.com"]
[Source "ChessBase"]
[SourceQuality "1"]
[TimeControl "900+10"]

1. d4 {[%emt 0:00:13]} d6 {[%emt 0:00:10]} 2. e4 {[%emt 0:00:09]} Nf6 {[%emt 0:00:02]} 3. Nc3 {[%emt 0:00:08]} a6 {[%emt 0:00:01]} 4. Bg5 {[%emt 0:01:44]} h6 {[%emt 0:00:40]} 5. Bxf6 {[%emt 0:00:14]} gxf6 {[%emt 0:00:11]} 6. a4 {[%emt 0:00:22]} Rg8 {[%emt 0:00:45]} 7. Nge2 {[%emt 0:00:55]} f5 {[%emt 0:00:13]} 8. exf5 {[%emt 0:00:13]} Bxf5 {[%emt 0:00:03]} 9. Ng3 {[%emt 0:00:07]} Qd7 {[%emt 0:00:29]} 10. Qf3 {[%emt 0:01:30]} Bg4 {[%emt 0:00:36]} 11. Qxb7 {[%emt 0:00:21]} Qc6 {[%emt 0:00:01]} 12. Qb3 {[%emt 0:03:04]} Nd7 {[%emt 0:01:52]} 13. h3 {[%emt 0:01:41]} Rb8 {[%emt 0:03:29]} 14. Qa2 {[%emt 0:00:05]} Bg7 {[%emt 0:01:17]} 15. hxg4 {[%emt 0:01:18]} Bxd4 {[%emt 0:00:01]} 16. Nge2 {[%emt 0:00:51]} Be5 {[%emt 0:00:43]} 17. f3 {[%emt 0:00:34]} e6 {[%emt 0:00:24]} 18. Rxh6 {[%emt 0:00:42]} Rb4 {[%emt 0:00:56]} 19. a5 {[%emt 0:02:05]} Kf8 {[%emt 0:00:11]} 20. Nd1 {[%emt 0:00:31]} Kg7 {[%emt 0:00:25]} 21. c3 {[%emt 0:00:16]} Rxg4 {[%emt 0:01:40]} 22. fxg4 {[%emt 0:00:08]} Kxh6 {[%emt 0:00:01]} 23. Qa4 {[%emt 0:00:04]} Qxa4 {[%emt 0:01:32]} 24. Rxa4 {[%emt 0:00:02]} Nc5 {[%emt 0:00:01]} 25. Rc4 {[%emt 0:00:07]} Nd3+ {[%emt 0:00:02]} 26. Kd2 {[%emt 0:00:02]} d5 {[%emt 0:00:01]} 27. Rc6 {[%emt 0:00:17]} 1-0

[Event "Hungarian Rapid-ch 2022"]
[Site "Ajka"]
[Date "2022.07.17"]
[Round "12.11"]
[White "Szamoskozi, Gabor"]
[Black "Korpa, Bence"]
[Result "0-1"]
[ECO "B03"]
[WhiteElo "2243"]
[BlackElo "2537"]
[Annotator "ChessBase"]
[PlyCount "88"]
[EventDate "2022.07.15"]
[EventType "swiss"]
[EventCountry "HUN"]
[SourceTitle "playchess.com"]
[Source "ChessBase"]
[SourceQuality "1"]
[TimeControl "900+10"]

1. e4 {[%emt 0:00:12]} Nf6 {[%emt 0:00:13]} 2. e5 {[%emt 0:00:12]} Nd5 {[%emt 0:00:01]} 3. c4 {[%emt 0:00:02]} Nb6 {[%emt 0:00:03]} 4. d4 {[%emt 0:00:02]} d6 {[%emt 0:00:02]} 5. exd6 {[%emt 0:00:07]} exd6 {[%emt 0:00:02]} 6. Nc3 {[%emt 0:00:08]} Be7 {[%emt 0:00:04]} 7. Bd3 {[%emt 0:00:45]} O-O {[%emt 0:00:04]} 8. Nge2 {[%emt 0:00:23]} Nc6 {[%emt 0:00:08]} 9. O-O {[%emt 0:00:44]} Bf6 {[%emt 0:00:04]} 10. Be3 {[%emt 0:00:18]} Nb4 {[%emt 0:00:04]} 11. a3 {[%emt 0:01:12]} Nxd3 {[%emt 0:00:10]} 12. Qxd3 {[%emt 0:00:02]} d5 {[%emt 0:01:26]} 13. b3 {[%emt 0:00:11]} c6 {[%emt 0:00:07]} 14. c5 {[%emt 0:00:36]} Nd7 {[%emt 0:00:03]} 15. b4 {[%emt 0:00:08]} b6 {[%emt 0:00:57]} 16. b5 {[%emt 0:01:21]} Bb7 {[%emt 0:00:18]} 17. a4 {[%emt 0:00:34]} Re8 {[%emt 0:04:46]} 18. Nxd5 {[%emt 0:01:10]} cxd5 {[%emt 0:00:28]} 19. c6 {[%emt 0:00:03]} Bc8 {[%emt 0:00:20]} 20. cxd7 {[%emt 0:00:31]} Qxd7 {[%emt 0:00:15]} 21. Rfc1 {[%emt 0:00:31]} Bb7 {[%emt 0:00:23]} 22. Nf4 {[%emt 0:01:55]} g6 {[%emt 0:00:04]} 23. Rc3 {[%emt 0:00:39]} Rac8 {[%emt 0:00:09]} 24. Rac1 {[%emt 0:00:06]} Rxc3 {[%emt 0:00:10]} 25. Rxc3 {[%emt 0:00:05]} Be7 {[%emt 0:02:14]} 26. Qc2 {[%emt 0:00:50]} Bd6 {[%emt 0:00:02]} 27. h3 {[%emt 0:00:22]} Re4 {[%emt 0:01:31]} 28. Nd3 {[%emt 0:00:58]} f6 {[%emt 0:01:12]} 29. Qd2 {[%emt 0:01:50]} Qe7 {[%emt 0:00:44]} 30. Rc1 {[%emt 0:00:21]} a5 {[%emt 0:00:49]} 31. Nc5 {[%emt 0:02:31]} bxc5 {[%emt 0:00:32]} 32. dxc5 {[%emt 0:00:02]} d4 {[%emt 0:00:56]} 33. Bxd4 {[%emt 0:00:35]} Bf4 {[%emt 0:00:10]} 34. Be3 {[%emt 0:00:32]} Rxe3 {[%emt 0:00:36]} 35. c6 {[%emt 0:00:15]} Bc8 {[%emt 0:00:48]} 36. b6 {[%emt 0:00:03]} Re4 {[%emt 0:00:22]} 37. Qd5+ {[%emt 0:00:06]} Kg7 {[%emt 0:00:04]} 38. Rf1 {[%emt 0:00:23]} Rb4 {[%emt 0:00:39]} 39. Qxa5 {[%emt 0:00:15]} Bd6 {[%emt 0:00:15]} 40. Qa8 {[%emt 0:00:37]} Qe5 {[%emt 0:00:09]} 41. g3 {[%emt 0:00:05]} Bxh3 {[%emt 0:00:03]} 42. c7 {[%emt 0:00:08]} Bxc7 {[%emt 0:00:08]} 43. bxc7 {[%emt 0:00:01]} Qxc7 {[%emt 0:00:04]} 44. Re1 {[%emt 0:00:03]} Qb7 {[%emt 0:00:19]} 0-1

[Event "Hungarian Rapid-ch 2022"]
[Site "Ajka"]
[Date "2022.07.17"]
[Round "12.12"]
[White "Lakos, Nikoletta"]
[Black "Hera, Imre Jr."]
[Result "1/2-1/2"]
[ECO "B40"]
[WhiteElo "2203"]
[BlackElo "2568"]
[Annotator "ChessBase"]
[PlyCount "138"]
[EventDate "2022.07.15"]
[EventType "swiss"]
[EventCountry "HUN"]
[SourceTitle "playchess.com"]
[Source "ChessBase"]
[SourceQuality "1"]
[TimeControl "900+10"]

1. e4 {[%emt 0:00:11]} c5 {[%emt 0:00:12]} 2. Nf3 {[%emt 0:00:08]} e6 {[%emt 0:00:02]} 3. b3 {[%emt 0:00:07]} b6 {[%emt 0:00:02]} 4. Bb2 {[%emt 0:00:03]} Bb7 {[%emt 0:00:02]} 5. Nc3 {[%emt 0:00:28]} a6 {[%emt 0:00:08]} 6. g3 {[%emt 0:00:23]} d6 {[%emt 0:00:23]} 7. Bg2 {[%emt 0:00:06]} Nf6 {[%emt 0:00:03]} 8. Qe2 {[%emt 0:00:39]} Nc6 {[%emt 0:00:14]} 9. O-O-O {[%emt 0:01:25]} Nd4 {[%emt 0:00:56]} 10. Qd3 {[%emt 0:00:02]} e5 {[%emt 0:00:10]} 11. Nxd4 {[%emt 0:01:01]} cxd4 {[%emt 0:00:02]} 12. Nd5 {[%emt 0:00:19]} Nxd5 {[%emt 0:00:16]} 13. exd5 {[%emt 0:00:01]} Be7 {[%emt 0:00:02]} 14. c3 {[%emt 0:00:43]} dxc3 {[%emt 0:00:33]} 15. dxc3 {[%emt 0:00:02]} O-O {[%emt 0:00:02]} 16. Be4 {[%emt 0:00:59]} g6 {[%emt 0:00:07]} 17. h4 {[%emt 0:00:41]} f5 {[%emt 0:00:07]} 18. Bg2 {[%emt 0:00:01]} h5 {[%emt 0:01:02]} 19. Qd2 {[%emt 0:00:32]} Bf6 {[%emt 0:00:57]} 20. Kb1 {[%emt 0:01:01]} b5 {[%emt 0:00:08]} 21. f3 {[%emt 0:00:23]} Qd7 {[%emt 0:04:27]} 22. g4 {[%emt 0:02:47]} fxg4 {[%emt 0:00:07]} 23. fxg4 {[%emt 0:00:06]} Qxg4 {[%emt 0:00:06]} 24. Qc2 {[%emt 0:03:17]} Bc8 {[%emt 0:01:38]} 25. Bh3 {[%emt 0:00:15]} Bf5 {[%emt 0:00:05]} 26. Bxg4 {[%emt 0:00:01]} Bxc2+ {[%emt 0:00:01]} 27. Kxc2 {[%emt 0:00:02]} hxg4 {[%emt 0:00:01]} 28. Rdg1 {[%emt 0:00:03]} Be7 {[%emt 0:01:46]} 29. Rxg4 {[%emt 0:00:14]} Kh7 {[%emt 0:00:09]} 30. Rhg1 {[%emt 0:00:41]} Rf2+ {[%emt 0:00:22]} 31. Kb1 {[%emt 0:00:05]} Rg8 {[%emt 0:00:05]} 32. Bc1 {[%emt 0:01:35]} Rh2 {[%emt 0:00:03]} 33. Bg5 {[%emt 0:00:10]} Bxg5 {[%emt 0:00:04]} 34. hxg5 {[%emt 0:00:01]} Rf8 {[%emt 0:00:03]} 35. R4g2 {[%emt 0:00:03]} Rh3 {[%emt 0:00:52]} 36. Rg3 {[%emt 0:00:25]} Rh5 {[%emt 0:00:09]} 37. R1g2 {[%emt 0:00:43]} Rf1+ {[%emt 0:00:41]} 38. Kb2 {[%emt 0:00:03]} Rhh1 {[%emt 0:00:04]} 39. Ka3 {[%emt 0:01:04]} a5 {[%emt 0:00:48]} 40. c4 {[%emt 0:00:06]} bxc4 {[%emt 0:00:06]} 41. bxc4 {[%emt 0:00:00]} Rc1 {[%emt 0:00:17]} 42. Rg4 {[%emt 0:00:29]} Rh3+ {[%emt 0:01:25]} 43. Ka4 {[%emt 0:00:14]} Rb1 {[%emt 0:00:02]} 44. R2g3 {[%emt 0:00:35]} Rxg3 {[%emt 0:00:49]} 45. Rxg3 {[%emt 0:00:01]} Rb4+ {[%emt 0:00:02]} 46. Kxa5 {[%emt 0:00:01]} Rxc4 {[%emt 0:00:01]} 47. a4 {[%emt 0:00:28]} Rd4 {[%emt 0:00:12]} 48. Kb5 {[%emt 0:00:14]} Rxd5+ {[%emt 0:00:01]} 49. Kc6 {[%emt 0:00:00]} Ra5 {[%emt 0:00:45]} 50. Kxd6 {[%emt 0:00:02]} e4 {[%emt 0:00:10]} 51. Rg4 {[%emt 0:00:07]} Rxa4 {[%emt 0:00:19]} 52. Kd5 {[%emt 0:00:01]} Kg7 {[%emt 0:00:10]} 53. Ke5 {[%emt 0:00:18]} Kf7 {[%emt 0:00:13]} 54. Rxe4 {[%emt 0:00:07]} Rxe4+ {[%emt 0:00:02]} 55. Kxe4 {[%emt 0:00:01]} Ke6 {[%emt 0:00:01]} 56. Kf4 {[%emt 0:00:10]} Kd5 {[%emt 0:00:01]} 57. Kg4 {[%emt 0:00:11]} Ke4 {[%emt 0:00:01]} 58. Kg3 {[%emt 0:00:04]} Kf5 {[%emt 0:00:01]} 59. Kh4 {[%emt 0:00:02]} Kf4 {[%emt 0:00:01]} 60. Kh3 {[%emt 0:00:00]} Kxg5 {[%emt 0:00:02]} 61. Kg3 {[%emt 0:00:01]} Kf5 {[%emt 0:00:01]} 62. Kf3 {[%emt 0:00:02]} g5 {[%emt 0:00:05]} 63. Kg3 {[%emt 0:00:05]} g4 {[%emt 0:00:02]} 64. Kg2 {[%emt 0:00:03]} Kf4 {[%emt 0:00:01]} 65. Kf2 {[%emt 0:00:00]} g3+ {[%emt 0:00:01]} 66. Kg2 {[%emt 0:00:02]} Kg4 {[%emt 0:00:01]} 67. Kg1 {[%emt 0:00:07]} Kf3 {[%emt 0:00:02]} 68. Kf1 {[%emt 0:00:01]} g2+ {[%emt 0:00:00]} 69. Kg1 {[%emt 0:00:00]} Kg3 1/2-1/2

[Event "Hungarian Rapid-ch 2022"]
[Site "Ajka"]
[Date "2022.07.17"]
[Round "12.13"]
[White "Kaczur, Florian"]
[Black "Kovacs, Klara"]
[Result "1-0"]
[ECO "C03"]
[WhiteElo "2482"]
[BlackElo "2098"]
[Annotator "ChessBase"]
[PlyCount "33"]
[EventDate "2022.07.15"]
[EventType "swiss"]
[EventCountry "HUN"]
[SourceTitle "playchess.com"]
[Source "ChessBase"]
[SourceQuality "1"]
[TimeControl "900+10"]

1. e4 {[%emt 0:00:12]} e6 {[%emt 0:00:11]} 2. d4 {[%emt 0:00:06]} d5 {[%emt 0:00:01]} 3. Nd2 {[%emt 0:00:05]} Be7 {[%emt 0:00:01]} 4. c3 {[%emt 0:00:07]} c5 {[%emt 0:00:02]} 5. dxc5 {[%emt 0:00:09]} Nf6 {[%emt 0:00:17]} 6. exd5 {[%emt 0:00:24]} Qxd5 {[%emt 0:00:18]} 7. b4 {[%emt 0:01:34]} Qe5+ {[%emt 0:00:04]} 8. Ne2 {[%emt 0:00:09]} a5 {[%emt 0:00:09]} 9. Nc4 {[%emt 0:00:16]} Qc7 {[%emt 0:00:17]} 10. Bf4 {[%emt 0:00:20]} Qc6 {[%emt 0:02:10]} 11. Nb6 {[%emt 0:01:34]} Nbd7 {[%emt 0:01:01]} 12. Nxa8 {[%emt 0:00:08]} e5 {[%emt 0:00:02]} 13. b5 {[%emt 0:00:44]} Qe4 {[%emt 0:01:12]} 14. Be3 {[%emt 0:01:52]} Bxc5 {[%emt 0:00:41]} 15. Ng3 {[%emt 0:00:18]} Qg6 {[%emt 0:00:14]} 16. Bxc5 {[%emt 0:00:32]} Nxc5 {[%emt 0:00:02]} 17. Qd6 {[%emt 0:00:37]} 1-0

[Event "Hungarian Rapid-ch 2022"]
[Site "Ajka"]
[Date "2022.07.17"]
[Round "12.14"]
[White "Nemeth, Zalan"]
[Black "Vertetics, Attila"]
[Result "1/2-1/2"]
[ECO "A11"]
[WhiteElo "2194"]
[BlackElo "2465"]
[Annotator "ChessBase"]
[PlyCount "55"]
[EventDate "2022.07.15"]
[EventType "swiss"]
[EventCountry "HUN"]
[SourceTitle "playchess.com"]
[Source "ChessBase"]
[SourceQuality "1"]
[TimeControl "900+10"]

1. c4 {[%emt 0:00:11]} c6 {[%emt 0:00:12]} 2. g3 {[%emt 0:00:01]} d5 {[%emt 0:00:02]} 3. Nf3 {[%emt 0:00:01]} Bg4 {[%emt 0:00:02]} 4. Ne5 {[%emt 0:00:08]} Be6 {[%emt 0:00:16]} 5. Bg2 {[%emt 0:00:14]} Nd7 {[%emt 0:00:22]} 6. Nf3 {[%emt 0:02:17]} Bg4 {[%emt 0:02:23]} 7. cxd5 {[%emt 0:00:09]} cxd5 {[%emt 0:00:02]} 8. d4 {[%emt 0:00:01]} e6 {[%emt 0:00:16]} 9. Nc3 {[%emt 0:00:03]} Bd6 {[%emt 0:02:34]} 10. Qb3 {[%emt 0:00:27]} Qb6 {[%emt 0:01:36]} 11. Qxb6 {[%emt 0:00:51]} Nxb6 {[%emt 0:00:06]} 12. O-O {[%emt 0:00:03]} Ne7 {[%emt 0:00:32]} 13. h3 {[%emt 0:00:57]} Bf5 {[%emt 0:01:26]} 14. Nh4 {[%emt 0:00:11]} Rc8 {[%emt 0:00:31]} 15. Nxf5 {[%emt 0:00:59]} Nxf5 {[%emt 0:00:03]} 16. e3 {[%emt 0:00:23]} Kd7 {[%emt 0:00:26]} 17. Rd1 {[%emt 0:00:55]} Bb4 {[%emt 0:00:30]} 18. Ne2 {[%emt 0:00:17]} Rc2 {[%emt 0:00:54]} 19. Nf4 {[%emt 0:00:12]} Rhc8 {[%emt 0:00:08]} 20. Bf1 {[%emt 0:00:36]} Bd6 {[%emt 0:00:28]} 21. Bd3 {[%emt 0:00:22]} R2c7 {[%emt 0:00:11]} 22. b3 {[%emt 0:01:29]} Bb4 {[%emt 0:00:39]} 23. Ne2 {[%emt 0:01:39]} g6 {[%emt 0:01:00]} 24. a3 {[%emt 0:00:04]} Be7 {[%emt 0:00:23]} 25. Bd2 {[%emt 0:00:12]} Nd6 {[%emt 0:00:16]} 26. f3 {[%emt 0:00:42]} f5 {[%emt 0:00:18]} 27. h4 {[%emt 0:00:21]} Ke8 {[%emt 0:00:13]} 28. Rdc1 {[%emt 0:00:25]} 1/2-1/2

[Event "Hungarian Rapid-ch 2022"]
[Site "Ajka"]
[Date "2022.07.17"]
[Round "12.15"]
[White "Jakab, Attila"]
[Black "Miszler, Levente"]
[Result "1-0"]
[ECO "E53"]
[WhiteElo "2311"]
[BlackElo "2243"]
[Annotator "ChessBase"]
[PlyCount "127"]
[EventDate "2022.07.15"]
[EventType "swiss"]
[EventCountry "HUN"]
[SourceTitle "playchess.com"]
[Source "ChessBase"]
[SourceQuality "1"]
[TimeControl "900+10"]

1. d4 {[%emt 0:00:19]} e6 {[%emt 0:00:11]} 2. c4 {[%emt 0:00:02]} Nf6 {[%emt 0:00:02]} 3. Nc3 {[%emt 0:00:02]} Bb4 {[%emt 0:00:02]} 4. e3 {[%emt 0:00:02]} O-O {[%emt 0:00:05]} 5. Bd3 {[%emt 0:00:02]} d5 {[%emt 0:00:10]} 6. Nf3 {[%emt 0:00:02]} c5 {[%emt 0:00:07]} 7. O-O {[%emt 0:00:04]} cxd4 {[%emt 0:00:03]} 8. exd4 {[%emt 0:00:02]} dxc4 {[%emt 0:00:03]} 9. Bxc4 {[%emt 0:00:02]} b6 {[%emt 0:00:01]} 10. Bg5 {[%emt 0:00:05]} Bb7 {[%emt 0:00:21]} 11. Qd3 {[%emt 0:00:05]} Nbd7 {[%emt 0:00:32]} 12. Rad1 {[%emt 0:00:09]} h6 {[%emt 0:00:12]} 13. Bh4 {[%emt 0:00:03]} Rc8 {[%emt 0:00:35]} 14. Bb3 {[%emt 0:00:08]} a6 {[%emt 0:01:43]} 15. Rfe1 {[%emt 0:00:24]} Qc7 {[%emt 0:00:20]} 16. Bg3 {[%emt 0:00:38]} Bd6 {[%emt 0:00:26]} 17. Ne5 {[%emt 0:00:16]} Nd5 {[%emt 0:01:23]} 18. Nxd5 {[%emt 0:02:58]} exd5 {[%emt 0:03:20]} 19. Qf5 {[%emt 0:00:11]} Nxe5 {[%emt 0:02:41]} 20. dxe5 {[%emt 0:00:10]} Bb4 {[%emt 0:00:25]} 21. Re3 {[%emt 0:00:13]} Qc1 {[%emt 0:01:02]} 22. a3 {[%emt 0:00:48]} Be7 {[%emt 0:01:24]} 23. h4 {[%emt 0:00:43]} d4 {[%emt 0:02:02]} 24. Red3 {[%emt 0:01:25]} Qc6 {[%emt 0:00:17]} 25. f3 {[%emt 0:00:14]} Rcd8 {[%emt 0:00:27]} 26. Bf2 {[%emt 0:00:16]} Bc5 {[%emt 0:00:10]} 27. Ba2 {[%emt 0:00:17]} Bc8 {[%emt 0:00:11]} 28. Qf4 {[%emt 0:00:02]} Be6 {[%emt 0:00:03]} 29. Bb1 {[%emt 0:00:43]} Bc4 {[%emt 0:00:17]} 30. Rc1 {[%emt 0:01:18]} Bxd3 {[%emt 0:00:16]} 31. Bxd3 {[%emt 0:00:02]} Qe6 {[%emt 0:00:21]} 32. b4 {[%emt 0:00:13]} Be7 {[%emt 0:00:07]} 33. Rc7 {[%emt 0:00:17]} Rd5 {[%emt 0:00:34]} 34. Qe4 {[%emt 0:00:21]} g6 {[%emt 0:00:37]} 35. Bc4 {[%emt 0:00:08]} Rxe5 {[%emt 0:00:16]} 36. Bxe6 {[%emt 0:00:22]} Rxe4 {[%emt 0:00:01]} 37. fxe4 {[%emt 0:00:02]} Bd8 {[%emt 0:00:02]} 38. Rc6 {[%emt 0:00:43]} fxe6 {[%emt 0:00:02]} 39. Rxe6 {[%emt 0:00:01]} Rf6 {[%emt 0:00:09]} 40. Re8+ {[%emt 0:00:15]} Rf8 {[%emt 0:00:00]} 41. Re5 {[%emt 0:00:02]} Bf6 {[%emt 0:00:30]} 42. Rd5 {[%emt 0:00:03]} Re8 {[%emt 0:00:09]} 43. Rd6 {[%emt 0:00:37]} Kf7 {[%emt 0:00:03]} 44. Rxb6 {[%emt 0:00:03]} Rxe4 {[%emt 0:00:05]} 45. Rxa6 {[%emt 0:00:02]} Bxh4 {[%emt 0:00:07]} 46. Bxh4 {[%emt 0:00:13]} Rxh4 {[%emt 0:00:02]} 47. Kf2 {[%emt 0:00:01]} Re4 {[%emt 0:00:02]} 48. Rd6 {[%emt 0:00:21]} h5 {[%emt 0:00:18]} 49. b5 {[%emt 0:00:07]} g5 {[%emt 0:00:09]} 50. b6 {[%emt 0:00:28]} Re3 {[%emt 0:00:26]} 51. Rxd4 {[%emt 0:01:17]} Rxa3 {[%emt 0:00:02]} 52. Rb4 {[%emt 0:00:01]} Ra8 {[%emt 0:00:01]} 53. b7 {[%emt 0:00:02]} Rb8 {[%emt 0:00:01]} 54. Kf3 {[%emt 0:00:25]} Ke6 {[%emt 0:00:05]} 55. Ke4 {[%emt 0:00:05]} h4 {[%emt 0:00:49]} 56. Kf3 {[%emt 0:00:53]} Kd6 {[%emt 0:00:25]} 57. Kg4 {[%emt 0:00:07]} Kc7 {[%emt 0:00:02]} 58. Kxg5 {[%emt 0:00:08]} Rxb7 {[%emt 0:00:16]} 59. Rxb7+ {[%emt 0:00:02]} Kxb7 {[%emt 0:00:01]} 60. Kxh4 Kc7 61. Kg5 {[%emt 0:00:03]} Kd7 {[%emt 0:00:02]} 62. Kf6 {[%emt 0:00:02]} Ke8 {[%emt 0:00:01]} 63. Kg7 {[%emt 0:00:14]} Ke7 {[%emt 0:00:01]} 64. g4 {[%emt 0:00:01]} 1-0